fUST/lending_fUST_20240810
["ID","MTS","AMOUNT","RATE_DAILY","PERIOD"]
[334564655,1723224632369,-204.25,0.0002,7]
[334564657,1723224632378,-500.0,0.0002,7]
[334564659,1723224632388,-500.0,0.0002,7]
[334564661,1723224632397,-503.82878278,0.0002,20]
[334564663,1723224632409,-496.17121722,0.0002,20]
[334564665,1723224632418,-345.78734882,0.00020551,2]
[334564666,1723224632430,-4971.04663156,0.00020551,2]
[334564668,1723224632439,-207.2250634,0.000206,2]
[334564670,1723224632451,-207.2250634,0.000206,2]
[334564672,1723224632460,-207.2250634,0.000206,2]
[334564674,1723224632469,-192.0596122,0.000206,2]
[334564712,1723224640582,-15.1654512,0.000206,2]
[334564713,1723224640593,-620.02942713,0.00020686,2]
[334564714,1723224640603,-207.2250634,0.000207,2]
[334564715,1723224640613,-271.9306801,0.000207,2]
[334564716,1723224640622,-207.2250634,0.000207,2]
[334564717,1723224640632,-1000.0,0.00020718,2]
[334564718,1723224640642,-1000.0,0.00020719,2]
[334564719,1723224640652,-1000.0,0.0002074,2]
[334564720,1723224640661,-300.0,0.0002076,2]
[334564721,1723224640671,-1765.37504346,0.00020776,2]
[334564722,1723224640681,-1000.0,0.00020782,2]
[334564723,1723224640691,-3089.46751472,0.00020786,2]
[334564724,1723224640701,-1000.0,0.00020787,2]
[334564725,1723224640711,-1000.0,0.00020794,2]
[334564729,1723224640936,-150.0,0.00020794,2]
[334564730,1723224640946,-2000.0,0.00020804,2]
[334564731,1723224640956,-507.0,0.00020807,2]
[334564732,1723224640965,-1000.0,0.00020811,2]
[334564733,1723224640974,-2000.0,0.00020814,2]
[334564734,1723224640984,-1000.0,0.00020842,2]
[334564735,1723224640993,-1000.0,0.00020854,2]
[334564736,1723224641001,-1000.0,0.00020855,2]
[334564737,1723224641011,-200.0,0.00020873,2]
[334564738,1723224641022,-200.0,0.00020873,2]
[334564739,1723224641033,-167.92,0.00020876,3]
[334564740,1723224641043,-503.76,0.00020876,3]
[334564741,1723224641052,-10493.07332189,0.00020876,2]
[334564742,1723224641063,-1626.92608275,0.00020876,2]
[334564743,1723224641073,-4184.36415148,0.00020876,2]
[334564744,1723224641083,-151.0,0.00020876,2]
[334564745,1723224641093,-151.0,0.00020876,2]
[334564746,1723224641104,-151.0,0.00020876,2]
[334564747,1723224641114,-11039.06442058,0.00020876,2]
[334564748,1723224641332,-1366.3583558,0.00020876,2]
[334564913,1723225840695,-311.01915351,0.00019256,2]
[334564914,1723225840705,-336.38121722,0.0002,2]
[334564915,1723225840714,-153.0,0.000207,2]
[334564916,1723225840723,-153.0,0.000207,2]
[334564917,1723225840733,-1000.0,0.00020741,2]
[334564918,1723225840743,-387.8770684,0.00020776,2]
[334564919,1723225840858,-1377.49797506,0.00020776,2]
[334564921,1723225840868,-4266.0276743,0.00020783,2]
[334564923,1723225840878,-1000.0,0.00020784,2]
[334564925,1723225840888,-2000.0,0.00020793,2]
[334564927,1723225840897,-153.0,0.000208,2]
[334564929,1723225840907,-153.0,0.000208,2]
[334564930,1723225840916,-150.0,0.00020806,2]
[334564931,1723225840926,-4501.48771013,0.00020809,2]
[334564932,1723225840940,-1000.0,0.00020826,2]
[334564933,1723225840950,-167.92,0.00020866,3]
[334564934,1723225840959,-503.76,0.00020866,3]
[334564935,1723225840969,-200.0,0.00020873,2]
[334564936,1723225840978,-200.0,0.00020873,2]
[334564937,1723225840987,-4430.26027877,0.00020876,11]
[334564938,1723225840998,-4184.36415148,0.00020876,2]
[334564939,1723225841007,-10493.07332189,0.00020876,2]
[334564940,1723225841017,-1626.92608275,0.00020876,2]
[334564941,1723225841027,-9272.6333405,0.00020876,2]
[334564998,1723225846682,-71354.39777309,0.00020858,2]
[334564999,1723225846697,-200.0,0.00020873,2]
[334565000,1723225846707,-57316.5729921,0.00020876,2]
[334565001,1723225846717,-1000.0,0.00020879,2]
[334565002,1723225846727,-500.0,0.00020881,2]
[334565003,1723225846737,-513.63875838,0.00020881,2]
[334565004,1723225846747,-500.0,0.00020881,2]
[334565007,1723225846758,-500.0,0.00020881,2]
[334565009,1723225846767,-500.0,0.00020881,2]
[334565010,1723225846776,-500.0,0.00020881,2]
[334565011,1723225846786,-363.50663081,0.00020881,2]
[334565012,1723225846798,-22196.4021109,0.00020882,2]
[334565013,1723225846809,-347.088541,0.00020882,2]
[334565014,1723225846819,-347.088541,0.00020882,2]
[334565015,1723225846828,-174.880838,0.00020882,2]
[334565016,1723225846838,-174.880838,0.00020882,2]
[334565017,1723225846847,-201.20075,0.00020882,2]
[334565018,1723225846856,-201.20075,0.00020882,2]
[334565019,1723225846865,-161.719826,0.00020882,2]
[334565020,1723225846877,-161.719826,0.00020882,2]
[334565021,1723225846887,-151.0,0.00020883,2]
[334565022,1723225846897,-748.580375,0.00020883,2]
[334565023,1723225846907,-151.0,0.00020883,2]
[334565024,1723225846920,-748.580375,0.00020883,2]
[334565025,1723225846931,-151.0,0.00020883,2]
[334565026,1723225846954,-151.0,0.00020883,2]
[334565027,1723225846964,-151.0,0.00020883,2]
[334565028,1723225846975,-171.052786,0.00020883,2]
[334565029,1723225846986,-151.0,0.00020883,2]
[334565030,1723225846998,-151.0,0.00020883,2]
[334565031,1723225847008,-151.0,0.00020883,2]
[334565032,1723225847020,-151.0,0.00020883,2]
[334565033,1723225847030,-151.0,0.00020883,2]
[334565034,1723225847041,-231.89546,0.00020883,2]
[334565035,1723225847052,-209.153535,0.00020883,2]
[334565036,1723225847064,-209.153535,0.00020883,2]
[334565037,1723225847074,-151.0,0.00020883,2]
[334565038,1723225847085,-151.0,0.00020883,2]
[334565039,1723225847095,-151.0,0.00020883,2]
[334565040,1723225847105,-151.0,0.00020883,2]
[334565041,1723225847116,-151.0,0.00020883,2]
[334565042,1723225847129,-438.295614,0.00020883,2]
[334565043,1723225847142,-438.295614,0.00020883,2]
[334565044,1723225847156,-438.295614,0.00020883,2]
[334565045,1723225847167,-438.295614,0.00020883,2]
[334565046,1723225847179,-473.285378,0.00020883,2]
[334565047,1723225847193,-473.285378,0.00020883,2]
[334565048,1723225847204,-473.285378,0.00020883,2]
[334565049,1723225847216,-473.285378,0.00020883,2]
[334565050,1723225847230,-151.0,0.00020883,2]
[334565051,1723225847241,-151.0,0.00020883,2]
[334565052,1723225847252,-328.462833,0.00020883,2]
[334565053,1723225847263,-328.462833,0.00020883,2]
[334565054,1723225847273,-328.462833,0.00020883,2]
[334565055,1723225847285,-328.462833,0.00020883,2]
[334565056,1723225847295,-151.0,0.00020883,2]
[334565057,1723225847305,-1670.252813,0.00020883,2]
[334565058,1723225847317,-1670.252813,0.00020883,2]
[334565059,1723225847328,-1670.252813,0.00020883,2]
[334565060,1723225847339,-1670.252813,0.00020883,2]
[334565061,1723225847350,-220.88493,0.00020883,2]
[334565062,1723225847361,-220.88493,0.00020883,2]
[334565063,1723225847371,-220.88493,0.00020883,2]
[334565064,1723225847382,-220.88493,0.00020883,2]
[334565065,1723225847392,-937.104993,0.00020883,2]
[334565066,1723225847402,-937.104993,0.00020883,2]
[334565067,1723225847412,-937.104993,0.00020883,2]
[334565068,1723225847422,-937.104993,0.00020883,2]
[334565069,1723225847432,-614.815429,0.00020883,2]
[334565070,1723225847457,-614.815429,0.00020883,2]
[334565071,1723225847467,-614.815429,0.00020883,2]
[334565072,1723225847477,-614.815429,0.00020883,2]
[334565073,1723225847487,-620.090268,0.00020883,2]
[334565074,1723225847496,-620.090268,0.00020883,2]
[334565075,1723225847506,-620.090268,0.00020883,2]
[334565076,1723225847515,-620.090268,0.00020883,2]
[334565077,1723225847525,-347.088541,0.00020883,2]
[334565078,1723225847708,-347.088541,0.00020883,2]
[334565079,1723225847717,-174.880838,0.00020883,2]
[334565080,1723225847727,-174.880838,0.00020883,2]
[334565081,1723225847737,-201.20075,0.00020883,2]
[334565082,1723225847746,-201.20075,0.00020883,2]
[334565083,1723225847756,-161.719826,0.00020883,2]
[334565084,1723225847765,-161.719826,0.00020883,2]
[334565085,1723225847776,-151.0,0.00020884,2]
[334565086,1723225847786,-152.116825,0.00020884,2]
[334565087,1723225847796,-151.0,0.00020884,2]
[334565088,1723225847806,-748.580375,0.00020884,2]
[334565089,1723225847816,-151.0,0.00020884,2]
[334565090,1723225847826,-748.580375,0.00020884,2]
[334565091,1723225847835,-151.0,0.00020884,2]
[334565092,1723225847845,-151.0,0.00020884,2]
[334565093,1723225847855,-151.0,0.00020884,2]
[334565094,1723225847864,-151.0,0.00020884,2]
[334565095,1723225847875,-151.0,0.00020884,2]
[334565096,1723225847884,-151.0,0.00020884,2]
[334565097,1723225847894,-151.0,0.00020884,2]
[334565098,1723225847903,-151.0,0.00020884,2]
[334565099,1723225847913,-209.153535,0.00020884,2]
[334565100,1723225847922,-49.13450552,0.00020884,2]
[334565131,1723226803134,-309.51159033,0.00018989,2]
[334565132,1723226803157,-62.45826904,0.00019177,2]
[334565157,1723227041016,-270.12275983,0.00019177,2]
[334565158,1723227041027,-300.0,0.0001951,2]
[334565159,1723227041039,-21628.0577386,0.00019511,2]
[334565160,1723227041051,-243.42416017,0.0002,2]
[334565161,1723227041062,-151.56653755,0.0002,2]
[334565162,1723227041073,-154.77557542,0.0002028,2]
[334565163,1723227041083,-196.90524,0.000206,2]
[334565164,1723227041093,-306.0,0.000206,2]
[334565165,1723227041103,-153.0,0.000206,2]
[334565166,1723227041113,-306.0,0.000206,2]
[334565167,1723227041124,-153.0,0.000206,2]
[334565168,1723227041135,-153.0,0.000206,2]
[334565169,1723227041147,-153.0,0.000206,2]
[334565170,1723227041159,-153.0,0.000206,2]
[334565171,1723227041169,-620.00147136,0.00020635,2]
[334565172,1723227041180,-1000.0,0.00020655,2]
[334565173,1723227041190,-150.0,0.00020661,2]
[334565174,1723227041200,-1000.0,0.00020689,2]
[334565175,1723227041212,-306.0,0.000207,2]
[334565176,1723227041222,-153.0,0.000207,2]
[334565177,1723227041232,-153.0,0.000207,2]
[334565178,1723227041242,-153.0,0.000207,2]
[334565179,1723227041253,-1000.0,0.00020722,2]
[334565180,1723227041263,-1000.0,0.00020736,2]
[334565181,1723227041273,-4501.48771013,0.00020782,2]
[334565182,1723227041283,-1000.0,0.00020815,2]
[334565183,1723227041294,-153.0,0.00020822,2]
[334565184,1723227041304,-153.0,0.00020822,2]
[334565185,1723227041314,-153.0,0.00020822,2]
[334565186,1723227041325,-153.0,0.00020822,2]
[334565188,1723227041336,-153.0,0.00020822,2]
[334565190,1723227041347,-1000.0,0.0002087,2]
[334565193,1723227041357,-150.01,0.00020883,2]
[334565196,1723227041369,-2993.10206773,0.00020883,2]
[334565198,1723227041379,-10493.07332189,0.00020884,2]
[334565200,1723227041389,-4184.36415148,0.00020884,2]
[334565202,1723227041400,-1626.92608275,0.00020884,2]
[334565204,1723227041410,-1000.0,0.00020888,2]
[334565206,1723227041421,-503.76,0.0002089,3]
[334565207,1723227041433,-151.0,0.00020891,2]
[334565208,1723227041444,-749.683994,0.00020891,2]
[334565209,1723227041456,-151.0,0.00020891,2]
[334565210,1723227041467,-151.0,0.00020891,2]
[334565211,1723227041477,-1336.20225,0.00020891,2]
[334565212,1723227041492,-1336.20225,0.00020891,2]
[334565213,1723227041502,-151.0,0.00020891,2]
[334565214,1723227041512,-598.8643,0.00020891,2]
[334565215,1723227041523,-151.0,0.00020891,2]
[334565216,1723227041533,-598.8643,0.00020891,2]
[334565217,1723227041542,-160.9606,0.00020891,2]
[334565218,1723227041552,-160.9606,0.00020891,2]
[334565219,1723227041564,-277.670833,0.00020891,2]
[334565220,1723227041573,-277.670833,0.00020891,2]
[334565221,1723227041583,-167.92,0.00020891,3]
[334565222,1723227041593,-151.0,0.00020892,2]
[334565223,1723227041603,-151.0,0.00020892,2]
[334565224,1723227041613,-266.917895,0.00020892,2]
[334565225,1723227041622,-206.05704,0.000209,2]
[334565227,1723227041633,-749.683994,0.000209,2]
[334565229,1723227041644,-151.0,0.000209,2]
[334565231,1723227041655,-196.815303,0.000209,2]
[334565233,1723227041665,-1336.20225,0.000209,2]
[334565235,1723227041676,-1336.20225,0.000209,2]
[334565237,1723227041686,-602.0,0.000209,2]
[334565239,1723227041695,-6093.11746081,0.000209,2]
[334565241,1723227041705,-151.0,0.000209,2]
[334565243,1723227041717,-151.0,0.000209,2]
[334565245,1723227041727,-350.636492,0.000209,2]
[334565247,1723227041736,-350.636492,0.000209,2]
[334565249,1723227041746,-378.628302,0.000209,2]
[334565250,1723227041755,-378.628302,0.000209,2]
[334565252,1723227041764,-176.707944,0.000209,2]
[334565254,1723227041774,-176.707944,0.000209,2]
[334565256,1723227041783,-491.852343,0.000209,2]
[334565258,1723227041793,-496.072214,0.000209,2]
[334565260,1723227041803,-491.852343,0.000209,2]
[334565262,1723227041813,-496.072214,0.000209,2]
[334565264,1723227041823,-151.0,0.00020901,2]
[334565267,1723227041837,-151.0,0.00020901,2]
[334565269,1723227041847,-151.0,0.00020901,2]
[334565270,1723227041857,-151.0,0.00020901,2]
[334565271,1723227041867,-262.770266,0.00020901,2]
[334565272,1723227041878,-151.0,0.00020901,2]
[334565273,1723227041888,-598.8643,0.00020901,2]
[334565274,1723227041898,-151.0,0.00020901,2]
[334565275,1723227041907,-598.8643,0.00020901,2]
[334565276,1723227041917,-160.9606,0.00020901,2]
[334565277,1723227041926,-160.9606,0.00020901,2]
[334565278,1723227041936,-151.0,0.00020901,2]
[334565279,1723227041946,-175.323779,0.00020901,2]
[334565280,1723227041955,-277.670833,0.00020901,2]
[334565281,1723227041967,-175.323779,0.00020901,2]
[334565282,1723227041976,-277.670833,0.00020901,2]
[334565283,1723227041986,-300.0,0.00020914,2]
[334565284,1723227041996,-1412.0,0.00020926,2]
[334565285,1723227042005,-153.0,0.00020959,2]
[334565286,1723227042015,-1000.0,0.00020961,2]
[334565287,1723227042024,-300.0,0.00020983,2]
[334565288,1723227042034,-18220.7533557,0.0002099,3]
[334565289,1723227042043,-176.707944,0.0002099,2]
[334565290,1723227042053,-176.707944,0.0002099,2]
[334565291,1723227042062,-491.852343,0.0002099,2]
[334565292,1723227042072,-496.072214,0.0002099,2]
[334565293,1723227042082,-491.852343,0.0002099,2]
[334565294,1723227042091,-496.072214,0.0002099,2]
[334565295,1723227042101,-151.0,0.00020996,2]
[334565296,1723227042110,-151.0,0.00020996,2]
[334565297,1723227042121,-5575.35691799,0.00021,2]
[334565306,1723227044703,-41.32998437,0.000207,2]
[334565391,1723228078334,2499.29430478,0.00025,60]
[334565474,1723228242835,-1444.60456197,0.0002,2]
[334565475,1723228242846,-154.77557542,0.0002,2]
[334565477,1723228242859,-293.34672077,0.0002,2]
[334565478,1723228242869,-427.12199975,0.0002,2]
[334565480,1723228242878,-336.38121722,0.0002,2]
[334565482,1723228242887,-308.89213439,0.000205,2]
[334565485,1723228242898,-150.0,0.00020589,2]
[334565487,1723228242908,-2983.27779048,0.0002061,2]
[334565489,1723228242919,-1518.20991965,0.0002061,2]
[334565491,1723228242930,-151.56653755,0.00020659,2]
[334565493,1723228242940,-505.7554494,0.000207,2]
[334565495,1723228242949,-294.5666805,0.000207,2]
[334565497,1723228242958,-306.0,0.000207,2]
[334565498,1723228242968,-306.0,0.000207,2]
[334565499,1723228242977,-165.7876325,0.000207,2]
[334565500,1723228242987,-267.8162636,0.000207,2]
[334565501,1723228242996,-153.0,0.000207,2]
[334565502,1723228243005,-535.6325272,0.000207,2]
[334565503,1723228243015,-153.0,0.000207,2]
[334565504,1723228243024,-535.6325272,0.000207,2]
[334565505,1723228243033,-153.0,0.000207,2]
[334565506,1723228243043,-267.8162636,0.000207,2]
[334565507,1723228243052,-207.2250634,0.000207,2]
[334565508,1723228243062,-232.4706765,0.000207,2]
[334565510,1723228243072,-306.0,0.000207,2]
[334565512,1723228243081,-153.0,0.000207,2]
[334565514,1723228243091,-1000.0,0.00020727,2]
[334565515,1723228243100,-300.0,0.00020742,2]
[334565517,1723228243109,-1000.0,0.00020786,2]
[334565518,1723228243119,-1000.0,0.00020792,2]
[334565519,1723228243128,-153.0,0.000208,2]
[334565520,1723228243138,-153.5978301,0.000208,2]
[334565521,1723228243147,-267.8162636,0.000208,2]
[334565522,1723228243156,-535.6325272,0.000208,2]
[334565523,1723228243165,-267.8162636,0.000208,2]
[334565524,1723228243174,-267.8162636,0.000208,2]
[334565525,1723228243183,-153.0,0.000208,2]
[334565526,1723228243192,-294.5666805,0.000208,2]
[334565527,1723228243201,-153.0,0.000208,2]
[334565528,1723228243211,-153.0,0.00020822,2]
[334565529,1723228243220,-206.2341022,0.00020822,2]
[334565530,1723228243229,-535.6325272,0.00020822,2]
[334565531,1723228243238,-1000.0,0.00020826,2]
[334565532,1723228243248,-1000.0,0.00020855,2]
[334565533,1723228243257,-1000.0,0.0002087,2]
[334565534,1723228243268,-1000.0,0.00020882,2]
[334565535,1723228243277,-1000.0,0.0002089,2]
[334565536,1723228243287,-267.8162636,0.000209,2]
[334565537,1723228243296,-267.8162636,0.000209,2]
[334565538,1723228243305,-349.90524,0.000209,2]
[334565539,1723228243315,-267.8162636,0.000209,2]
[334565540,1723228243324,-267.8162636,0.000209,2]
[334565541,1723228243333,-602.0,0.000209,2]
[334565542,1723228243343,-1711.72416189,0.000209,2]
[334565543,1723228243352,-150.01,0.00020999,2]
[334565544,1723228243362,-2993.10206773,0.00020999,2]
[334565545,1723228243372,-6093.11746081,0.00020999,2]
[334565546,1723228243381,-60339.25564305,0.00021,2]
[334565560,1723229413675,167.3,0.00014247,2]
[334565633,1723229432261,-292.02724512,0.0002,2]
[334565635,1723229432270,-243.42416017,0.0002,2]
[334565637,1723229432282,-620.02942713,0.00020584,2]
[334565640,1723229432292,-153.0,0.000209,2]
[334565642,1723229432302,-294.5666805,0.000209,2]
[334565644,1723229432311,-153.0,0.000209,2]
[334565646,1723229432321,-207.2250634,0.000209,2]
[334565648,1723229432334,-267.8162636,0.000209,2]
[334565650,1723229432344,-153.0,0.000209,2]
[334565652,1723229432354,-180.34877616,0.000209,2]
[334565685,1723229440928,-26.87628724,0.000209,2]
[334565686,1723229440939,-294.5666805,0.000209,2]
[334565687,1723229440949,-207.2250634,0.000209,2]
[334565688,1723229440959,-207.2250634,0.000209,2]
[334565689,1723229440970,-294.5666805,0.000209,2]
[334565690,1723229440980,-153.0,0.000209,2]
[334565691,1723229440989,-1497.75864161,0.000209,2]
[334565692,1723229440999,-267.8162636,0.00020932,2]
[334565693,1723229441008,-2233.96531975,0.00020957,2]
[334565738,1723229454611,7.31327862,0.00017269,2]
[334565745,1723229907080,385.39664016,0.00015954,2]
[334565746,1723230033772,166.473582,0.00014247,2]
[334565747,1723230379223,-2400.0,0.00028,120]
[334565750,1723230547397,-154.79103211,0.00016159,2]
[334565751,1723230548513,250.24281476,0.00016532,2]
[334565777,1723230632563,-59.13855609,0.00016532,2]
[334565778,1723230632573,-1290.86143291,0.00018798,2]
[334565827,1723230638737,-1815.91841241,0.00018798,2]
[334565985,1723230640690,-7926.18003338,0.00018798,2]
[334565986,1723230640700,-2277.87309117,0.00018945,3]
[334565987,1723230640709,-240.81957697,0.0001895,2]
[334565988,1723230640719,-309.21151064,0.0001895,2]
[334565989,1723230640728,-209.19959389,0.00018969,2]
[334565990,1723230640738,-166.33601691,0.00018976,2]
[334565991,1723230640747,-191.21400034,0.00018976,2]
[334565992,1723230640757,-654.7212971,0.00018989,2]
[334565993,1723230640766,-515.142599,0.00019338,2]
[334565994,1723230640775,-5112.68102993,0.00019603,2]
[334565995,1723230640784,-5112.68102993,0.00019905,2]
[334565996,1723230640794,-154.77557542,0.00019999,2]
[334565997,1723230640803,-5112.68102993,0.00020033,2]
[334565998,1723230640812,-1421.29270584,0.00020037,2]
[334565999,1723230640822,-153.0,0.00020041,2]
[334566000,1723230640832,-153.0,0.00020078,2]
[334566001,1723230640841,-589.133361,0.00020078,2]
[334566002,1723230640852,-150.0,0.00020097,2]
[334566003,1723230640862,-153.0,0.00020137,2]
[334566004,1723230640872,-153.0,0.00020137,2]
[334566005,1723230640882,-153.0,0.00020137,2]
[334566006,1723230640892,-153.0,0.00020137,2]
[334566008,1723230640904,-153.0,0.00020137,2]
[334566009,1723230640915,-153.0,0.00020137,2]
[334566011,1723230640925,-153.0,0.00020137,2]
[334566013,1723230640936,-153.0,0.00020137,2]
[334566014,1723230640946,-267.8162636,0.00020137,2]
[334566015,1723230640955,-267.8162636,0.00020137,2]
[334566016,1723230640965,-267.8162636,0.00020137,2]
[334566017,1723230640975,-153.0,0.00020141,2]
[334566018,1723230640984,-153.0,0.00020141,2]
[334566019,1723230640993,-153.0,0.00020141,2]
[334566020,1723230641002,-153.0,0.00020178,2]
[334566021,1723230641011,-267.8162636,0.00020178,2]
[334566022,1723230641021,-207.2250634,0.00020178,2]
[334566023,1723230641031,-207.2250634,0.00020178,2]
[334566024,1723230641040,-306.0,0.00020178,2]
[334566025,1723230641049,-294.5666805,0.00020178,2]
[334566026,1723230641060,-308.0776666,0.00020178,2]
[334566027,1723230641070,-153.0,0.00020178,2]
[334566028,1723230641079,-267.8162636,0.00020178,2]
[334566029,1723230641088,-207.2250634,0.00020178,2]
[334566030,1723230641098,-153.0,0.00020178,2]
[334566031,1723230641107,-294.5666805,0.00020178,2]
[334566032,1723230641117,-535.6325272,0.00020178,2]
[334566033,1723230641129,-267.8162636,0.00020178,2]
[334566034,1723230641139,-153.2214191,0.00020178,2]
[334566035,1723230641151,-294.5666805,0.00020178,2]
[334566036,1723230641164,-379.2791897,0.00020178,2]
[334566037,1723230641174,-267.8162636,0.00020178,2]
[334566038,1723230641183,-153.0,0.00020178,2]
[334566039,1723230641193,-267.8162636,0.00020178,2]
[334566040,1723230641203,-153.0,0.00020178,2]
[334566041,1723230641213,-207.2250634,0.00020178,2]
[334566042,1723230641223,-153.0,0.00020178,2]
[334566043,1723230641234,-294.5666805,0.00020178,2]
[334566044,1723230641245,-207.2250634,0.00020178,2]
[334566045,1723230641254,-413.4591656,0.00020178,2]
[334566046,1723230641264,-267.8162636,0.00020178,2]
[334566047,1723230641274,-153.0,0.000202,2]
[334566048,1723230641283,-306.0,0.00020274,2]
[334566049,1723230641293,-267.8162636,0.00020274,2]
[334566050,1723230641302,-267.8162636,0.00020274,2]
[334566051,1723230641311,-267.8162636,0.00020274,2]
[334566052,1723230641321,-150.0,0.00020278,2]
[334566053,1723230641331,-507.0,0.00020278,2]
[334566054,1723230641341,-378.628302,0.00020278,2]
[334566055,1723230641350,-378.628302,0.00020278,2]
[334566056,1723230641360,-749.683994,0.00020278,2]
[334566057,1723230641369,-749.683994,0.00020278,2]
[334566059,1723230641378,-496.072214,0.00020278,2]
[334566060,1723230641388,-496.072214,0.00020278,2]
[334566062,1723230641397,-267.8162636,0.00020278,2]
[334566064,1723230641417,-153.0,0.00020278,2]
[334566066,1723230641427,-207.2250634,0.00020278,2]
[334566067,1723230641436,-294.5666805,0.00020278,2]
[334566069,1723230641445,-153.0,0.00020278,2]
[334566071,1723230641454,-207.2250634,0.00020278,2]
[334566072,1723230641464,-207.2250634,0.00020278,2]
[334566074,1723230641473,-267.8162636,0.00020278,2]
[334566076,1723230641482,-153.0,0.00020278,2]
[334566078,1723230641491,-207.2250634,0.00020278,2]
[334566079,1723230641500,-294.5666805,0.00020278,2]
[334566080,1723230641509,-462.7132363,0.00020278,2]
[334566081,1723230641519,-267.8162636,0.00020278,2]
[334566082,1723230641528,-153.0,0.00020278,2]
[334566083,1723230641538,-589.133361,0.00020278,2]
[334566084,1723230641548,-207.2250634,0.00020278,2]
[334566085,1723230641557,-267.8162636,0.00020278,2]
[334566086,1723230641567,-153.0,0.00020278,2]
[334566087,1723230641576,-207.2250634,0.00020278,2]
[334566088,1723230641586,-153.0,0.000203,2]
[334566089,1723230641599,-267.8162636,0.000203,2]
[334566090,1723230641608,-414.4501268,0.000203,2]
[334566091,1723230641619,-153.0,0.000203,2]
[334566092,1723230641628,-267.8162636,0.000203,2]
[334566093,1723230641638,-207.2250634,0.000203,2]
[334566094,1723230641647,-153.0,0.000203,2]
[334566095,1723230641661,-207.2250634,0.00020329,2]
[334566096,1723230641672,-414.4501268,0.00020329,2]
[334566097,1723230641681,-206.894743,0.00020329,2]
[334566098,1723230641690,-410.9037432,0.00020329,2]
[334566099,1723230641699,-295.52972968,0.00020446,2]
[334566100,1723230641709,-151.0,0.00020475,2]
[334566101,1723230641718,-175.323779,0.00020475,2]
[334566102,1723230641727,-175.323779,0.00020475,2]
[334566103,1723230641736,-262.770266,0.00020475,2]
[334566104,1723230641746,-262.770266,0.00020475,2]
[334566105,1723230641756,-494.3211947,0.000205,2]
[334566106,1723230641765,-267.8162636,0.000205,2]
[334566107,1723230641775,-153.0,0.000205,2]
[334566108,1723230641784,-525.325606,0.000205,2]
[334566109,1723230641793,-1412.0,0.00020506,2]
[334566110,1723230641802,-160.9606,0.00020512,2]
[334566111,1723230641811,-160.9606,0.00020512,2]
[334566112,1723230641820,-151.0,0.00020512,2]
[334566113,1723230641829,-151.0,0.00020512,2]
[334566114,1723230641839,-176.707944,0.00020512,2]
[334566115,1723230641848,-176.707944,0.00020512,2]
[334566116,1723230641857,-491.852343,0.00020512,2]
[334566117,1723230641867,-491.852343,0.00020512,2]
[334566118,1723230641877,-151.0,0.00020512,2]
[334566119,1723230641888,-151.0,0.00020512,2]
[334566120,1723230641897,-1336.20225,0.00020512,2]
[334566121,1723230641910,-1336.20225,0.00020512,2]
[334566122,1723230641920,-277.670833,0.00020512,2]
[334566123,1723230641931,-277.670833,0.00020512,2]
[334566124,1723230641941,-151.0,0.00020512,2]
[334566125,1723230641951,-350.636492,0.00020512,2]
[334566126,1723230641961,-350.636492,0.00020512,2]
[334566127,1723230641970,-378.628302,0.00020512,2]
[334566128,1723230641979,-378.628302,0.00020512,2]